[Event "*** SCC Grand Prix: Titled Tuesday Blitz"]
[Site "Chess.com"]
[Date "2020.06.02"]
[Round "1"]
[White "kingnb"]
[Black "nadirsm"]
[Result "1-0"]
[WhiteElo "2522"]
[BlackElo "2148"]
[TimeControl "180+1"]
[EndTime "10:07:50 PDT"]
[Termination "kingnb won by resignation"]

1. d4 {[%clk 0:03:00.9]} 1... d5 {[%clk 0:02:59.6]} 2. Nf3 {[%clk 0:03:01.2]}
2... c6 {[%clk 0:02:58.9]} 3. e3 {[%clk 0:03:01.3]} 3... Bf5 {[%clk 0:02:58.5]}
4. c4 {[%clk 0:03:01.8]} 4... e6 {[%clk 0:02:58.5]} 5. Qb3 {[%clk 0:03:00.3]}
5... Qb6 {[%clk 0:02:58.3]} 6. Nc3 {[%clk 0:03:00.2]} 6... Qxb3 {[%clk 0:02:51]}
7. axb3 {[%clk 0:03:01.1]} 7... a6 {[%clk 0:02:50.3]} 8. Bd2 {[%clk 0:03:00.4]}
8... Nd7 {[%clk 0:02:49.2]} 9. Be2 {[%clk 0:02:57.5]} 9... Ngf6 {[%clk
0:02:47.1]} 10. O-O {[%clk 0:02:57.4]} 10... h6 {[%clk 0:02:47]} 11. Rfe1 {[%clk
0:02:45.9]} 11... Be7 {[%clk 0:02:44.1]} 12. h3 {[%clk 0:02:40.2]} 12... O-O
{[%clk 0:02:38.5]} 13. c5 {[%clk 0:02:40.4]} 13... Ne4 {[%clk 0:02:32.6]} 14. b4
{[%clk 0:02:39.2]} 14... Rfe8 {[%clk 0:02:21.3]} 15. Nxe4 {[%clk 0:02:36.5]}
15... Bxe4 {[%clk 0:02:20.7]} 16. Bc3 {[%clk 0:02:36.3]} 16... Bf6 {[%clk
0:02:16.4]} 17. Nd2 {[%clk 0:02:34.8]} 17... Bg6 {[%clk 0:02:15.9]} 18. f4
{[%clk 0:02:28.9]} 18... Rac8 {[%clk 0:01:50.5]} 19. Bf3 {[%clk 0:02:26.8]}
19... Be7 {[%clk 0:01:42.8]} 20. g4 {[%clk 0:02:25.7]} 20... f5 {[%clk
0:01:39.4]} 21. Re2 {[%clk 0:02:11.1]} 21... Nf6 {[%clk 0:01:35.9]} 22. Rg2
{[%clk 0:02:10.5]} 22... Kh7 {[%clk 0:01:01.1]} 23. Kh2 {[%clk 0:02:07.7]} 23...
Ne4 {[%clk 0:00:58.4]} 24. Bxe4 {[%clk 0:02:00]} 24... fxe4 {[%clk 0:00:52.3]}
25. Nf1 {[%clk 0:01:56.4]} 25... Rf8 {[%clk 0:00:48.8]} 26. Ng3 {[%clk
0:01:52.7]} 26... Bh4 {[%clk 0:00:46.6]} 27. Ne2 {[%clk 0:01:52.6]} 27... Rc7
{[%clk 0:00:44.4]} 28. Be1 {[%clk 0:01:51.6]} 28... Bd8 {[%clk 0:00:39.3]} 29.
Bg3 {[%clk 0:01:51]} 29... Rcf7 {[%clk 0:00:38.7]} 30. Rf1 {[%clk 0:01:50.4]}
30... a5 {[%clk 0:00:29.4]} 31. bxa5 {[%clk 0:01:48.3]} 31... Bxa5 {[%clk
0:00:29.9]} 32. Ra1 {[%clk 0:01:48.6]} 32... Bd2 {[%clk 0:00:29.6]} 33. Bf2
{[%clk 0:01:38.6]} 33... h5 {[%clk 0:00:27.5]} 34. Rgg1 {[%clk 0:01:37.3]} 34...
hxg4 {[%clk 0:00:26.4]} 35. hxg4 {[%clk 0:01:38.2]} 35... Rd7 {[%clk 0:00:23.1]}
36. Rgd1 {[%clk 0:01:37.1]} 36... Bb4 {[%clk 0:00:18.2]} 37. Ra4 {[%clk
0:01:35.9]} 37... Bxc5 {[%clk 0:00:13.3]} 38. dxc5 {[%clk 0:01:36.8]} 38... e5
{[%clk 0:00:14.2]} 39. f5 {[%clk 0:01:35.5]} 39... Be8 {[%clk 0:00:14.2]} 40.
Kg2 {[%clk 0:01:35.4]} 40... g6 {[%clk 0:00:14.5]} 41. Rh1+ {[%clk 0:01:31.2]}
41... Kg8 {[%clk 0:00:14.1]} 42. fxg6 {[%clk 0:01:26]} 42... Bxg6 {[%clk
0:00:14.2]} 43. Bg3 {[%clk 0:01:26.2]} 43... Re7 {[%clk 0:00:12.8]} 44. Raa1
{[%clk 0:01:24.6]} 44... Rf3 {[%clk 0:00:12.9]} 45. Ra8+ {[%clk 0:01:20.6]}
45... Kg7 {[%clk 0:00:12.4]} 46. Rh3 {[%clk 0:01:16.2]} 46... Kf7 {[%clk
0:00:09.8]} 47. Bh4 {[%clk 0:01:12.4]} 47... Rxh3 {[%clk 0:00:08.7]} 48. Kxh3
{[%clk 0:01:13.3]} 48... Rd7 {[%clk 0:00:06.4]} 49. Rd8 {[%clk 0:01:12.8]} 49...
Rxd8 {[%clk 0:00:06]} 50. Bxd8 {[%clk 0:01:13.7]} 50... Ke6 {[%clk 0:00:04]} 51.
Kh4 {[%clk 0:01:13.2]} 51... d4 {[%clk 0:00:03.6]} 52. exd4 {[%clk 0:01:13.1]}
52... exd4 {[%clk 0:00:03.9]} 53. Nxd4+ {[%clk 0:01:13.6]} 53... Kd5 {[%clk
0:00:04.8]} 54. Ne2 {[%clk 0:01:08.2]} 54... e3 {[%clk 0:00:04.1]} 55. Kg5
{[%clk 0:01:09.1]} 55... Bd3 {[%clk 0:00:03.9]} 56. Nf4+ {[%clk 0:01:08.9]}
56... Kc4 {[%clk 0:00:04]} 57. Nxd3 {[%clk 0:01:08.9]} 57... Kxd3 {[%clk
0:00:04.2]} 58. Kf5 {[%clk 0:01:09.4]} 58... e2 {[%clk 0:00:03.4]} 59. Bh4
{[%clk 0:01:10.3]} 59... Kc4 {[%clk 0:00:03.1]} 60. g5 {[%clk 0:01:10.5]} 60...
Kxc5 {[%clk 0:00:04]} 61. g6 {[%clk 0:01:10.8]} 1-0

[Event "*** SCC Grand Prix: Titled Tuesday Blitz"]
[Site "Chess.com"]
[Date "2020.06.02"]
[Round "1"]
[White "andy_rekt"]
[Black "sergeikim"]
[Result "0-1"]
[WhiteElo "2023"]
[BlackElo "2480"]
[TimeControl "180+1"]
[EndTime "10:07:50 PDT"]
[Termination "sergeikim won by resignation"]

1. d4 {[%clk 0:02:59.5]} 1... Nf6 {[%clk 0:02:59.1]} 2. c4 {[%clk 0:02:59]} 2...
g6 {[%clk 0:02:59.1]} 3. Nc3 {[%clk 0:02:58.3]} 3... Bg7 {[%clk 0:02:59.1]} 4.
e4 {[%clk 0:02:58.2]} 4... d6 {[%clk 0:02:59.1]} 5. Nge2 {[%clk 0:02:58.3]} 5...
O-O {[%clk 0:02:58.8]} 6. Ng3 {[%clk 0:02:58.3]} 6... e5 {[%clk 0:02:56.7]} 7.
d5 {[%clk 0:02:57.3]} 7... a5 {[%clk 0:02:56]} 8. Be2 {[%clk 0:02:57.1]} 8...
Na6 {[%clk 0:02:55.1]} 9. h4 {[%clk 0:02:56.2]} 9... h6 {[%clk 0:02:51]} 10. h5
{[%clk 0:02:50.1]} 10... g5 {[%clk 0:02:38.4]} 11. Nf5 {[%clk 0:02:40.1]} 11...
Bxf5 {[%clk 0:02:36.1]} 12. exf5 {[%clk 0:02:41]} 12... e4 {[%clk 0:02:35.1]}
13. Be3 {[%clk 0:02:36.5]} 13... c6 {[%clk 0:02:20.8]} 14. Bd4 {[%clk
0:02:05.4]} 14... Re8 {[%clk 0:02:18.6]} 15. Qd2 {[%clk 0:01:55.2]} 15... Nb4
{[%clk 0:02:05.4]} 16. dxc6 {[%clk 0:01:45.8]} 16... bxc6 {[%clk 0:01:51.3]} 17.
O-O-O {[%clk 0:01:43.8]} 17... a4 {[%clk 0:01:42.8]} 18. a3 {[%clk 0:01:42]}
18... Na6 {[%clk 0:01:41.9]} 19. Be3 {[%clk 0:01:37]} 19... Bf8 {[%clk
0:01:20.2]} 20. Kb1 {[%clk 0:01:22.1]} 20... Qa5 {[%clk 0:01:10.6]} 21. Nd5
{[%clk 0:01:09.7]} 21... Qd8 {[%clk 0:01:06.3]} 22. Bxg5 {[%clk 0:01:01.8]}
22... cxd5 {[%clk 0:01:05]} 23. Bxh6 {[%clk 0:00:56.8]} 23... Nh7 {[%clk
0:00:51.3]} 24. Bxf8 {[%clk 0:00:45.5]} 24... Rxf8 {[%clk 0:00:46.7]} 25. Rh3
{[%clk 0:00:43.9]} 25... Kh8 {[%clk 0:00:45.3]} 26. Rg3 {[%clk 0:00:41]} 26...
Nc7 {[%clk 0:00:40.6]} 27. cxd5 {[%clk 0:00:37.7]} 27... Qf6 {[%clk 0:00:40.3]}
28. Qd4 {[%clk 0:00:29.6]} 28... Qxd4 {[%clk 0:00:39.4]} 29. Rxd4 {[%clk
0:00:30.5]} 29... Nf6 {[%clk 0:00:39.6]} 30. Bd1 {[%clk 0:00:22.7]} 30... Ncxd5
{[%clk 0:00:38]} 31. Rxa4 {[%clk 0:00:21.7]} 31... Rxa4 {[%clk 0:00:36.2]} 32.
Bxa4 {[%clk 0:00:22.6]} 32... Rb8 {[%clk 0:00:35.6]} 33. Bb3 {[%clk 0:00:19.1]}
33... Ne7 {[%clk 0:00:35.2]} 34. Bxf7 {[%clk 0:00:18]} 34... Nxf5 {[%clk
0:00:34.5]} 35. Rg6 {[%clk 0:00:16.5]} 35... Nd7 {[%clk 0:00:31.8]} 36. Be6
{[%clk 0:00:15.9]} 36... Ne5 {[%clk 0:00:31.2]} 37. Bxf5 {[%clk 0:00:14.4]}
37... Nxg6 {[%clk 0:00:30.7]} 38. Bxg6 {[%clk 0:00:13.7]} 38... d5 {[%clk
0:00:30.8]} 39. b4 {[%clk 0:00:13.7]} 39... Kg7 {[%clk 0:00:30.9]} 40. Kc2
{[%clk 0:00:13.4]} 40... Kf6 {[%clk 0:00:31.1]} 41. f3 {[%clk 0:00:10.8]} 41...
Ke5 {[%clk 0:00:27.1]} 42. fxe4 {[%clk 0:00:10]} 42... dxe4 {[%clk 0:00:27.1]}
43. g4 {[%clk 0:00:09.8]} 43... e3 {[%clk 0:00:25.9]} 44. Kd3 {[%clk 0:00:09.7]}
44... Kf4 {[%clk 0:00:25]} 45. h6 {[%clk 0:00:07.7]} 45... Rd8+ {[%clk
0:00:25.9]} 46. Ke2 {[%clk 0:00:07.3]} 46... Rd2+ {[%clk 0:00:24]} 47. Ke1
{[%clk 0:00:06.9]} 47... Rh2 {[%clk 0:00:23.8]} 48. h7 {[%clk 0:00:06.4]} 48...
Kf3 {[%clk 0:00:22.4]} 49. Bd3 {[%clk 0:00:02.8]} 49... Rh1+ {[%clk 0:00:21.3]}
50. Bf1 {[%clk 0:00:02.7]} 50... e2 {[%clk 0:00:21.5]} 0-1

[Event "*** SCC Grand Prix: Titled Tuesday Blitz"]
[Site "Chess.com"]
[Date "2020.06.02"]
[Round "1"]
[White "kasparicy"]
[Black "DenisQ"]
[Result "0-1"]
[WhiteElo "2223"]
[BlackElo "2566"]
[TimeControl "180+1"]
[EndTime "10:07:51 PDT"]
[Termination "DenisQ won by resignation"]

1. e4 {[%clk 0:03:00.4]} 1... c6 {[%clk 0:02:59.3]} 2. d4 {[%clk 0:02:58.4]}
2... d5 {[%clk 0:02:59.5]} 3. f3 {[%clk 0:02:58.9]} 3... Nf6 {[%clk 0:02:55.2]}
4. e5 {[%clk 0:02:57.9]} 4... Nfd7 {[%clk 0:02:54.9]} 5. f4 {[%clk 0:02:58.8]}
5... c5 {[%clk 0:02:54.1]} 6. Nf3 {[%clk 0:02:59.4]} 6... Nc6 {[%clk 0:02:53.9]}
7. Be3 {[%clk 0:02:59.3]} 7... e6 {[%clk 0:02:45.6]} 8. c3 {[%clk 0:02:59.6]}
8... Qb6 {[%clk 0:02:42.4]} 9. Qc2 {[%clk 0:02:55.1]} 9... f6 {[%clk 0:02:37.5]}
10. Nbd2 {[%clk 0:02:45.6]} 10... cxd4 {[%clk 0:02:36.4]} 11. Nxd4 {[%clk
0:02:38.1]} 11... fxe5 {[%clk 0:02:34]} 12. fxe5 {[%clk 0:02:37.9]} 12... Ndxe5
{[%clk 0:02:32.3]} 13. Be2 {[%clk 0:02:30.1]} 13... Bc5 {[%clk 0:02:11.6]} 14.
N2b3 {[%clk 0:02:25.3]} 14... Bxd4 {[%clk 0:02:10]} 15. Nxd4 {[%clk 0:02:20.3]}
15... O-O {[%clk 0:02:07.3]} 16. O-O-O {[%clk 0:02:08.4]} 16... Bd7 {[%clk
0:02:05.3]} 17. Kb1 {[%clk 0:02:08.4]} 17... Rac8 {[%clk 0:02:03.4]} 18. Rhe1
{[%clk 0:01:46.1]} 18... Qc7 {[%clk 0:01:45.3]} 19. Nb5 {[%clk 0:01:39.2]} 19...
Qb8 {[%clk 0:01:36.9]} 20. Bc5 {[%clk 0:01:38.3]} 20... Ng6 {[%clk 0:01:17.2]}
21. Bd6 {[%clk 0:01:33.7]} 21... Qa8 {[%clk 0:01:17]} 22. Bxf8 {[%clk
0:01:32.3]} 22... Rxf8 {[%clk 0:01:17.9]} 23. Bd3 {[%clk 0:01:32]} 23... Nce5
{[%clk 0:01:17.3]} 24. Nd4 {[%clk 0:01:21.4]} 24... Nxd3 {[%clk 0:01:16.8]} 25.
Qxd3 {[%clk 0:01:21.4]} 25... e5 {[%clk 0:01:16.6]} 26. Rf1 {[%clk 0:01:09.4]}
26... exd4 {[%clk 0:01:15.2]} 27. Qxd4 {[%clk 0:01:10.3]} 27... Bf5+ {[%clk
0:01:12.7]} 28. Ka1 {[%clk 0:01:09.9]} 28... Be4 {[%clk 0:01:12.8]} 29. g3
{[%clk 0:01:02.5]} 29... Rxf1 {[%clk 0:01:00.5]} 30. Rxf1 {[%clk 0:01:01.2]}
30... a6 {[%clk 0:00:58.1]} 31. h4 {[%clk 0:01:01.2]} 31... Qb8 {[%clk
0:00:52.6]} 32. h5 {[%clk 0:01:00.1]} 32... Ne5 {[%clk 0:00:52.7]} 33. h6 {[%clk
0:00:58.1]} 33... gxh6 {[%clk 0:00:52.3]} 34. Qb6 {[%clk 0:00:52.4]} 34... Nc6
{[%clk 0:00:49.3]} 35. Qe3 {[%clk 0:00:50]} 35... Qd6 {[%clk 0:00:47.9]} 36. Rf4
{[%clk 0:00:49.1]} 36... Ne5 {[%clk 0:00:46.4]} 37. Qa7 {[%clk 0:00:47.9]} 37...
Qe7 {[%clk 0:00:39.1]} 38. Qb8+ {[%clk 0:00:43.6]} 38... Kg7 {[%clk 0:00:39.1]}
39. a3 {[%clk 0:00:44]} 39... Nd3 {[%clk 0:00:36.4]} 40. Rg4+ {[%clk 0:00:42.6]}
40... Bg6 {[%clk 0:00:36.2]} 41. a4 {[%clk 0:00:24.9]} 41... Qe1+ {[%clk
0:00:17.2]} 42. Ka2 {[%clk 0:00:24.5]} 42... Nc1+ {[%clk 0:00:18.1]} 43. Ka3
{[%clk 0:00:24.7]} 43... Qe7+ {[%clk 0:00:18.4]} 44. b4 {[%clk 0:00:22.9]} 44...
Ne2 {[%clk 0:00:18.5]} 45. Qc8 {[%clk 0:00:15.4]} 45... d4 {[%clk 0:00:18.1]}
46. Qc4 {[%clk 0:00:01.7]} 46... dxc3 {[%clk 0:00:15]} 47. a5 {[%clk 0:00:01.7]}
47... c2 {[%clk 0:00:12.5]} 0-1

[Event "*** SCC Grand Prix: Titled Tuesday Blitz"]
[Site "Chess.com"]
[Date "2020.06.02"]
[Round "1"]
[White "Denis_Palkovich"]
[Black "Ba_clbaf_osed_ingo_3v21"]
[Result "0-1"]
[WhiteElo "2320"]
[BlackElo "2656"]
[TimeControl "180+1"]
[EndTime "10:07:52 PDT"]
[Termination "Ba_clbaf_osed_ingo_3v21 won by resignation"]

1. d4 {[%clk 0:02:58]} 1... Nf6 {[%clk 0:02:59.8]} 2. Bf4 {[%clk 0:02:57.7]}
2... d5 {[%clk 0:02:58.9]} 3. e3 {[%clk 0:02:56.9]} 3... c5 {[%clk 0:02:59]} 4.
c3 {[%clk 0:02:56.3]} 4... e6 {[%clk 0:02:59.3]} 5. Nd2 {[%clk 0:02:56]} 5...
Nc6 {[%clk 0:02:59.4]} 6. Bd3 {[%clk 0:02:54.9]} 6... Be7 {[%clk 0:02:51.2]} 7.
Ngf3 {[%clk 0:02:53.4]} 7... O-O {[%clk 0:02:48.8]} 8. Ne5 {[%clk 0:02:53.2]}
8... Nd7 {[%clk 0:02:40.9]} 9. Qf3 {[%clk 0:02:50.9]} 9... Ndxe5 {[%clk
0:02:22.4]} 10. dxe5 {[%clk 0:02:50.3]} 10... f5 {[%clk 0:02:06.5]} 11. g4
{[%clk 0:02:47.4]} 11... d4 {[%clk 0:01:38.6]} 12. exd4 {[%clk 0:02:21.3]} 12...
cxd4 {[%clk 0:01:35.8]} 13. gxf5 {[%clk 0:02:21.5]} 13... exf5 {[%clk
0:01:34.2]} 14. Rg1 {[%clk 0:02:10.3]} 14... Be6 {[%clk 0:01:27.9]} 15. Qg3
{[%clk 0:01:45.8]} 15... g6 {[%clk 0:01:24.9]} 16. h4 {[%clk 0:01:22.6]} 16...
Bxh4 {[%clk 0:01:19.4]} 17. Qh3 {[%clk 0:01:21.3]} 17... dxc3 {[%clk 0:01:17.3]}
18. bxc3 {[%clk 0:01:22.2]} 18... Be7 {[%clk 0:00:35.2]} 19. Rd1 {[%clk
0:01:10]} 19... Qa5 {[%clk 0:00:29.9]} 20. Qh6 {[%clk 0:01:06.6]} 20... Nxe5
{[%clk 0:00:13.2]} 21. Be2 {[%clk 0:00:53.2]} 21... Rf7 {[%clk 0:00:09]} 22. Nf3
{[%clk 0:00:44]} 22... Nxf3+ {[%clk 0:00:07.3]} 23. Bxf3 {[%clk 0:00:43.9]}
23... Qxc3+ {[%clk 0:00:07.7]} 24. Rd2 {[%clk 0:00:29.2]} 24... Qxf3 {[%clk
0:00:07]} 25. Rxg6+ {[%clk 0:00:29.2]} 25... hxg6 {[%clk 0:00:03.8]} 26. Qxg6+
{[%clk 0:00:29.4]} 26... Kf8 {[%clk 0:00:03.9]} 27. Bh6+ {[%clk 0:00:26.7]}
27... Ke8 {[%clk 0:00:04]} 28. Qg8+ {[%clk 0:00:13.1]} 28... Bf8 {[%clk
0:00:03.6]} 29. Bxf8 {[%clk 0:00:11.3]} 29... Qe4+ {[%clk 0:00:03.5]} 30. Kd1
{[%clk 0:00:08.1]} 30... Rxf8 {[%clk 0:00:03.2]} 31. Qg6+ {[%clk 0:00:07]} 31...
Bf7 {[%clk 0:00:03.6]} 32. Qf6 {[%clk 0:00:05.8]} 32... Qb1+ {[%clk 0:00:03]}
33. Ke2 {[%clk 0:00:05.6]} 33... Qe4+ {[%clk 0:00:03.4]} 34. Kd1 {[%clk
0:00:05.4]} 34... Qa4+ {[%clk 0:00:01.9]} 35. Ke1 {[%clk 0:00:04.6]} 35... Bc4
{[%clk 0:00:02.7]} 36. Qe5+ {[%clk 0:00:03.5]} 36... Kf7 {[%clk 0:00:03]} 37.
Rd6 {[%clk 0:00:03.1]} 37... Kg8 {[%clk 0:00:02.7]} 38. Qf6 {[%clk 0:00:02.3]}
38... Rxf6 {[%clk 0:00:02.6]} 39. Rxf6 {[%clk 0:00:02.9]} 39... Qb4+ {[%clk
0:00:03.1]} 40. Kd1 {[%clk 0:00:02.3]} 40... Qb1+ {[%clk 0:00:03.7]} 41. Kd2
{[%clk 0:00:02.4]} 41... Qd3+ {[%clk 0:00:04.6]} 42. Kc1 {[%clk 0:00:02.6]}
42... Qc3+ {[%clk 0:00:05]} 43. Kb1 {[%clk 0:00:02.7]} 43... Qxf6 {[%clk
0:00:05.9]} 0-1

[Event "*** SCC Grand Prix: Titled Tuesday Blitz"]
[Site "Chess.com"]
[Date "2020.06.02"]
[Round "1"]
[White "Alexander_Zubov"]
[Black "Slovak_fighter2000"]
[Result "1-0"]
[WhiteElo "2956"]
[BlackElo "2447"]
[TimeControl "180+1"]
[EndTime "10:07:53 PDT"]
[Termination "Alexander_Zubov won on time"]

1. d4 {[%clk 0:02:59.4]} 1... Nf6 {[%clk 0:02:59.4]} 2. Nf3 {[%clk 0:02:59.1]}
2... e6 {[%clk 0:02:59.1]} 3. c4 {[%clk 0:02:58.4]} 3... b6 {[%clk 0:02:57.8]}
4. a3 {[%clk 0:02:55.4]} 4... Bb7 {[%clk 0:02:57.1]} 5. Nc3 {[%clk 0:02:54]}
5... d5 {[%clk 0:02:57.6]} 6. Bg5 {[%clk 0:02:49.4]} 6... Be7 {[%clk 0:02:56.2]}
7. e3 {[%clk 0:02:48.8]} 7... Nbd7 {[%clk 0:02:52.4]} 8. Rc1 {[%clk 0:02:47.3]}
8... O-O {[%clk 0:02:47.4]} 9. cxd5 {[%clk 0:02:42.3]} 9... exd5 {[%clk
0:02:41.5]} 10. Be2 {[%clk 0:02:35.2]} 10... h6 {[%clk 0:02:40.7]} 11. Bh4
{[%clk 0:02:32.4]} 11... c5 {[%clk 0:02:39.2]} 12. O-O {[%clk 0:02:30.5]} 12...
c4 {[%clk 0:02:35.9]} 13. Ne5 {[%clk 0:02:28.3]} 13... a6 {[%clk 0:02:30.4]} 14.
a4 {[%clk 0:02:23.4]} 14... Re8 {[%clk 0:01:53]} 15. Bf3 {[%clk 0:02:00.1]}
15... Nf8 {[%clk 0:01:49.1]} 16. Nxc4 {[%clk 0:01:45.8]} 16... dxc4 {[%clk
0:01:41]} 17. Bxb7 {[%clk 0:01:44.7]} 17... Ra7 {[%clk 0:01:41.5]} 18. Bc6
{[%clk 0:01:40.1]} 18... N8d7 {[%clk 0:01:41]} 19. Bg3 {[%clk 0:01:30]} 19...
Qc8 {[%clk 0:01:34.7]} 20. d5 {[%clk 0:01:26.1]} 20... Bc5 {[%clk 0:01:11.1]}
21. Qe2 {[%clk 0:01:22]} 21... Re7 {[%clk 0:00:52.9]} 22. Bxd7 {[%clk
0:01:07.8]} 22... Qxd7 {[%clk 0:00:50]} 23. Qxc4 {[%clk 0:01:07.2]} 23... Bd6
{[%clk 0:00:44.4]} 24. Qd4 {[%clk 0:00:56.9]} 24... Rb7 {[%clk 0:00:42.5]} 25.
e4 {[%clk 0:00:44.9]} 25... Bc5 {[%clk 0:00:39.8]} 26. Qd3 {[%clk 0:00:41.7]}
26... Qg4 {[%clk 0:00:37]} 27. d6 {[%clk 0:00:37]} 27... Re6 {[%clk 0:00:34.7]}
28. e5 {[%clk 0:00:34.5]} 28... Nh5 {[%clk 0:00:31.2]} 29. Rce1 {[%clk
0:00:33.5]} 29... Rd7 {[%clk 0:00:27.2]} 30. Qe4 {[%clk 0:00:29.1]} 30... Qxe4
{[%clk 0:00:18]} 31. Rxe4 {[%clk 0:00:28.8]} 31... f5 {[%clk 0:00:13.5]} 32.
exf6 {[%clk 0:00:22.1]} 32... Rxf6 {[%clk 0:00:10.9]} 33. Nd5 {[%clk 0:00:21.2]}
33... Rff7 {[%clk 0:00:07.7]} 34. Re8+ {[%clk 0:00:16]} 34... Kh7 {[%clk
0:00:07.8]} 35. Re7 {[%clk 0:00:15.2]} 35... Nf6 {[%clk 0:00:05.4]} 36. Rxf7
{[%clk 0:00:14.3]} 36... Rxf7 {[%clk 0:00:05.2]} 37. Nxf6+ {[%clk 0:00:14.2]}
37... gxf6 {[%clk 0:00:04.5]} 38. Rd1 {[%clk 0:00:14]} 38... Rd7 {[%clk
0:00:04.9]} 39. Kf1 {[%clk 0:00:13.7]} 39... Kg6 {[%clk 0:00:05.5]} 40. Ke2
{[%clk 0:00:12.9]} 40... Kf7 {[%clk 0:00:06.1]} 41. Kf3 {[%clk 0:00:13.1]} 41...
Ke6 {[%clk 0:00:06.6]} 42. Kg4 {[%clk 0:00:13.2]} 42... Rg7+ {[%clk 0:00:05.6]}
43. Kh5 {[%clk 0:00:13]} 43... Kf5 {[%clk 0:00:04.2]} 44. d7 {[%clk 0:00:08.9]}
44... Rg5+ {[%clk 0:00:03.3]} 45. Kh4 {[%clk 0:00:08.9]} 45... Be7 {[%clk
0:00:01.9]} 46. d8=Q {[%clk 0:00:08.5]} 46... Rg4+ {[%clk 0:00:01.7]} 47. Kh3
{[%clk 0:00:08]} 1-0

[Event "*** SCC Grand Prix: Titled Tuesday Blitz"]
[Site "Chess.com"]
[Date "2020.06.02"]
[Round "1"]
[White "ega2006"]
[Black "GMKrikor"]
[Result "0-1"]
[WhiteElo "2391"]
[BlackElo "2770"]
[TimeControl "180+1"]
[EndTime "10:07:53 PDT"]
[Termination "GMKrikor won by resignation"]

1. e4 {[%clk 0:03:00.9]} 1... c5 {[%clk 0:02:59.5]} 2. Nf3 {[%clk 0:03:01.3]}
2... d6 {[%clk 0:02:57.3]} 3. Bb5+ {[%clk 0:03:01.2]} 3... Nd7 {[%clk
0:02:56.5]} 4. d4 {[%clk 0:02:59.5]} 4... cxd4 {[%clk 0:02:55.6]} 5. Qxd4 {[%clk
0:03:00.4]} 5... a6 {[%clk 0:02:55.5]} 6. Bxd7+ {[%clk 0:03:00.2]} 6... Bxd7
{[%clk 0:02:56.4]} 7. O-O {[%clk 0:02:59.7]} 7... Rc8 {[%clk 0:02:54.4]} 8. c4
{[%clk 0:02:53.2]} 8... e5 {[%clk 0:02:54.4]} 9. Qd3 {[%clk 0:02:53]} 9... b5
{[%clk 0:02:48.2]} 10. Nfd2 {[%clk 0:02:50.7]} 10... Nf6 {[%clk 0:02:43]} 11.
Nc3 {[%clk 0:02:47.6]} 11... Qb6 {[%clk 0:02:41.5]} 12. b3 {[%clk 0:02:39.9]}
12... Be7 {[%clk 0:02:38.9]} 13. Rd1 {[%clk 0:02:12.2]} 13... O-O {[%clk
0:02:32.1]} 14. Nf1 {[%clk 0:02:00.9]} 14... bxc4 {[%clk 0:02:31]} 15. bxc4
{[%clk 0:02:00.7]} 15... Be6 {[%clk 0:02:17.4]} 16. Ne3 {[%clk 0:02:00.7]} 16...
Qc6 {[%clk 0:02:17.5]} 17. Ncd5 {[%clk 0:02:00.2]} 17... Bxd5 {[%clk 0:02:14.4]}
18. cxd5 {[%clk 0:02:00.1]} 18... Qa4 {[%clk 0:02:14.4]} 19. f3 {[%clk 0:01:57]}
19... Bd8 {[%clk 0:02:09.5]} 20. Qb3 {[%clk 0:01:51.2]} 20... Qxb3 {[%clk
0:01:46.8]} 21. axb3 {[%clk 0:01:52.1]} 21... Bb6 {[%clk 0:01:47.4]} 22. Rxa6
{[%clk 0:01:38.8]} 22... Nd7 {[%clk 0:01:29.5]} 23. Bd2 {[%clk 0:01:27.2]} 23...
Bd4 {[%clk 0:01:18.9]} 24. Rxd6 {[%clk 0:01:23.5]} 24... Nc5 {[%clk 0:01:19.1]}
25. b4 {[%clk 0:00:58.5]} 25... Nb3 {[%clk 0:01:15.1]} 26. Kf2 {[%clk
0:00:58.8]} 26... Nxd2 {[%clk 0:01:01.6]} 27. Rxd2 {[%clk 0:00:58.2]} 27... Rc3
{[%clk 0:01:02.2]} 28. Re2 {[%clk 0:00:56.2]} 28... Ra8 {[%clk 0:01:02.7]} 29.
Rc6 {[%clk 0:00:41]} 29... Rd3 {[%clk 0:00:44.2]} 30. d6 {[%clk 0:00:28]} 30...
Kf8 {[%clk 0:00:42.4]} 31. d7 {[%clk 0:00:17.8]} 31... Rd8 {[%clk 0:00:42.1]}
32. Rc8 {[%clk 0:00:15.3]} 32... Ke7 {[%clk 0:00:42.3]} 33. Rxd8 {[%clk
0:00:05]} 33... Kxd8 {[%clk 0:00:43.2]} 34. Re1 {[%clk 0:00:02.3]} 34... Kxd7
{[%clk 0:00:37.5]} 35. b5 {[%clk 0:00:02.3]} 35... Kc8 {[%clk 0:00:36.6]} 36.
Re2 {[%clk 0:00:03.2]} 36... Kb7 {[%clk 0:00:36.3]} 37. Re1 {[%clk 0:00:03.8]}
37... Kb6 {[%clk 0:00:36]} 38. Re2 {[%clk 0:00:04.4]} 38... Kxb5 {[%clk
0:00:33.2]} 39. Re1 {[%clk 0:00:04.7]} 39... Kb4 {[%clk 0:00:24.6]} 40. Re2
{[%clk 0:00:04.6]} 40... Kc3 {[%clk 0:00:23.7]} 41. g3 {[%clk 0:00:02]} 41...
Rxe3 {[%clk 0:00:23.5]} 42. Rxe3+ {[%clk 0:00:02.9]} 42... Kd2 {[%clk
0:00:23.6]} 43. f4 {[%clk 0:00:03.5]} 43... Bxe3+ {[%clk 0:00:21.4]} 44. Kf3
{[%clk 0:00:04.4]} 44... Kd3 {[%clk 0:00:17.4]} 45. fxe5 {[%clk 0:00:04.1]}
45... Kd4 {[%clk 0:00:16.1]} 46. h4 {[%clk 0:00:03.2]} 46... h5 {[%clk
0:00:15.2]} 47. g4 {[%clk 0:00:03.3]} 47... hxg4+ {[%clk 0:00:15.1]} 48. Kxg4
{[%clk 0:00:04.2]} 48... Kxe4 {[%clk 0:00:14.8]} 49. h5 {[%clk 0:00:03]} 49...
Kxe5 {[%clk 0:00:14.7]} 0-1